bitfinex/quotes_SOLUSD_20241007
["timestamp","ask_amount","ask_price","bid_price","bid_amount"]
[1728318959329,6.7083,149.07,149.03,10.21529514]
[1728318959633,6.708,149.08,149.04,6.7095]
[1728318959808,0.1,149.09,149.03,20.28009514]
[1728318960002,6.7083,149.07,149.03,26.98999514]
[1728318960325,6.7088,149.06,149.03,20.28009514]
[1728318960531,6.7088,149.06,149.03,3.50529514]
[1728318960704,6.7088,149.06,149.03,4.84708918]
[1728318960904,23.876884,149.09,149.03,11.55708918]
[1728318960905,6.7083,149.07,149.03,11.55708918]
[1728318963003,0.1,149.09,149.03,4.84708918]
[1728318963208,0.1,149.09,149.06,6.7086]
[1728318963429,0.1,149.09,149.07,8.04968618]
[1728318963924,0.1,149.09,149.06,20.27679514]
[1728318964110,0.1,149.09,149.08,6.7078]
[1728318964312,0.1,149.09,149.07,6.7081]
[1728318965231,0.1,149.09,149.08,6.7078]
[1728318965419,0.1,149.09,149.08,8.04921557]
[1728318965615,0.1,149.09,149.08,6.7078]
[1728318966238,0.1,149.09,149.08,8.04908916]
[1728318966939,0.1,149.09,149.08,6.7078]
[1728318969015,0.1,149.09,149.06,20.0]
[1728318969739,0.1,149.09,149.07,1.34128932]
[1728318970841,0.1,149.09,149.06,20.0]
[1728318973035,0.1,149.09,149.08,20.0]
[1728318974128,0.1,149.19,149.09,23.776884]
[1728318974129,6.8028,149.19,149.09,23.776884]
[1728318974440,6.8029,149.19,149.12,18.95348613]
[1728318974743,6.8029,149.19,149.13,1.34071418]
[1728318975844,0.1,149.19,149.13,1.34071418]
[1728318976218,6.8029,149.19,149.12,18.95348613]
[1728318976831,6.8029,149.19,149.13,1.34066072]
[1728318977245,6.8029,149.19,149.1,38.95348613]
[1728318977432,6.7034,149.18,149.1,38.95348613]
[1728318977827,6.7034,149.18,149.11,1.34072426]
[1728318978023,0.1,149.19,149.11,1.34072426]
[1728318978428,0.1,149.19,149.12,18.95348613]
[1728318978746,0.1,149.19,149.13,1.34050665]
[1728318978934,0.1,149.19,149.13,21.34050665]
[1728318979236,0.1,149.19,149.14,18.95348613]
[1728318979547,0.1,149.19,149.15,1.34040571]
[1728318979731,0.1,149.19,149.16,1.34041225]
[1728318980732,0.1,149.19,149.14,18.95348613]
[1728318981054,0.1,149.19,149.15,1.34041352]
[1728318981823,0.1,149.19,149.14,18.95348613]
[1728318982447,0.1,149.19,149.15,1.34035164]
[1728318982644,0.1,149.19,149.15,21.34035164]
[1728318983031,0.1,149.19,149.15,20.0]
[1728318983363,0.1,149.19,149.16,1.3403482]
[1728318986336,0.1,149.19,149.16,20.29383433]
[1728318986659,0.1,149.19,149.17,21.34008871]
[1728318987345,0.1,149.19,149.18,38.95348613]
[1728318988563,0.1,149.19,149.18,69.37387013]
[1728318988759,0.1,149.19,149.18,45.59698613]
[1728318989268,0.1,149.19,149.18,69.37387013]
[1728318989638,0.1,149.19,149.18,45.59698613]
[1728318989857,0.1,149.19,149.18,69.37387013]
[1728318990540,0.1,149.19,149.18,45.59698613]
[1728318991362,0.1,149.19,149.18,69.37387013]
[1728318992962,0.1,149.19,149.18,70.71374095]
[1728318993277,0.1,149.19,149.18,69.37387013]
[1728318993957,0.1,149.19,149.18,70.71366287]
[1728318994147,0.1,149.19,149.18,69.37387013]
[1728318994352,0.1,149.19,149.18,70.71372279]
[1728318994759,0.1,149.19,149.18,69.37387013]
[1728318995253,0.1,149.19,149.18,70.71372803]
[1728318996372,0.1,149.19,149.18,69.37387013]
[1728318996881,0.1,149.19,149.18,38.95348613]
[1728318997754,0.1,149.19,149.18,62.73037013]
[1728318998469,0.1,149.19,149.18,64.07028674]
[1728318999372,0.1,149.19,149.18,62.73037013]
[1728318999944,0.1,149.19,149.17,20.0]
[1728319000588,0.1,149.19,149.18,33.42846903]
[1728319001648,0.1,149.19,149.18,32.08835883]
[1728319002177,0.1,149.19,149.15,20.0]
[1728319002477,0.1,149.19,149.16,20.0]
[1728319003367,0.1,149.19,149.17,1.34030727]
[1728319003574,0.1,149.19,149.15,18.8913926]
[1728319003777,15.3067,149.18,149.1,18.8913926]
[1728319005384,15.3067,149.18,149.11,20.0]
[1728319005581,22.01,149.18,149.11,20.0]
[1728319006064,22.01,149.18,149.1,18.8913926]
[1728319006859,22.01,149.18,149.11,1.3406333]
[1728319007262,22.01,149.18,149.11,21.3406333]
[1728319008085,15.3067,149.18,149.11,21.3406333]
[1728319009779,22.0101,149.18,149.11,21.3406333]
[1728319010189,22.0101,149.18,149.12,1.3406353]
[1728319012177,22.0101,149.18,149.11,20.0]
[1728319014065,15.3067,149.18,149.11,20.0]
[1728319014285,6.7043,149.16,149.08,38.8913926]
[1728319014881,15.3067,149.18,149.08,38.8913926]
[1728319014882,6.7046,149.15,149.08,38.8913926]
[1728319016177,15.3067,149.18,149.08,20.0]
[1728319016377,16.4773,149.12,149.07,7.00623518]
[1728319017775,16.4773,149.12,149.08,20.0]
[1728319018390,16.4773,149.12,149.09,1.34113591]
[1728319020579,16.4773,149.12,149.07,20.0]
[1728319020993,16.4773,149.12,149.08,1.34116527]
[1728319023387,15.7659,149.16,149.14,1.34074599]
[1728319024390,15.7659,149.16,149.12,12.09969261]
[1728319024710,15.7659,149.16,149.13,1.34081963]
[1728319025391,15.7659,149.16,149.13,13.44051224]
[1728319025699,6.0469,149.17,149.14,12.09969261]
[1728319025885,6.0469,149.17,149.15,13.4403373]
[1728319026087,6.0469,149.17,149.16,1.34066244]
[1728319026409,0.1,149.19,149.15,13.44035706]
[1728319026591,6.7041,149.17,149.13,20.0]
[1728319026787,6.7041,149.17,149.12,12.09969261]
[1728319027301,6.7041,149.17,149.13,1.34079439]
[1728319028690,6.7034,149.18,149.13,13.440487]
[1728319030087,6.7038,149.17,149.13,13.440487]
[1728319030290,0.1,149.19,149.14,12.09969261]
[1728319030478,0.1,149.19,149.15,1.3405759]
[1728319030982,6.8028,149.19,149.15,1.3405759]
[1728319031182,0.1,149.19,149.13,12.09969261]
[1728319031376,6.7033,149.18,149.13,12.09969261]
[1728319032007,6.7033,149.18,149.14,1.34070786]
[1728319032598,6.803,149.19,149.14,1.34070786]
[1728319032904,6.803,149.19,149.14,13.44040047]
[1728319032905,0.1,149.19,149.14,13.44040047]
[1728319033107,0.1,149.19,149.15,1.34061179]
[1728319035186,6.803,149.19,149.13,12.09969261]
[1728319035387,6.803,149.19,149.14,13.44031543]
[1728319035388,0.1,149.19,149.14,13.44031543]
[1728319035609,0.1,149.19,149.13,12.09969261]
[1728319035610,6.803,149.19,149.13,12.09969261]
[1728319036106,6.7033,149.18,149.13,12.09969261]
[1728319036605,6.8029,149.19,149.13,12.09969261]
[1728319036791,6.7036,149.18,149.12,12.09969261]
[1728319036987,6.7042,149.16,149.12,12.09969261]
[1728319037303,6.7038,149.17,149.13,5.49035779]
[1728319037482,6.7038,149.17,149.14,5.49035779]
[1728319037802,6.7038,149.17,149.15,5.49035779]
[1728319037999,6.7038,149.17,149.12,5.49035779]
[1728319038181,6.7038,149.17,149.1,12.09969261]
[1728319038182,6.7038,149.17,149.13,5.49035779]
[1728319038378,23.876884,149.19,149.14,5.42405247]
[1728319038579,40.634184,149.19,149.14,5.42405247]
[1728319038782,40.634184,149.19,149.1,12.09969261]
[1728319038783,6.704,149.17,149.1,12.09969261]
[1728319039001,6.704,149.17,149.11,5.42438144]
[1728319039204,6.704,149.17,149.12,6.765261]
[1728319039506,6.704,149.17,149.13,5.42438144]
[1728319039682,40.634184,149.19,149.14,6.76518134]
[1728319039683,6.8029,149.19,149.14,6.76518134]
[1728319039885,6.8029,149.19,149.15,5.42438144]
[1728319040080,0.1,149.19,149.14,1.3407999]
[1728319040286,0.1,149.19,149.15,5.42531902]
[1728319040479,0.1,149.19,149.16,6.76584715]
[1728319040678,0.1,149.19,149.16,1.34052813]
[1728319041107,6.8029,149.19,149.13,20.0]
[1728319041293,0.1,149.19,149.14,6.76192693]
[1728319041493,0.1,149.19,149.15,5.42133439]
[1728319041700,0.1,149.19,149.16,6.7619324]
[1728319041994,0.1,149.19,149.16,1.34059801]
[1728319042197,0.1,149.19,149.17,5.41757823]
[1728319042408,0.1,149.19,149.18,1.34049949]
[1728319042589,0.1,149.19,149.15,12.09969261]
[1728319042590,0.1,149.19,149.16,1.34050548]
[1728319042790,0.1,149.19,149.17,5.41841525]
[1728319042995,0.1,149.19,149.18,6.75892398]
[1728319043508,0.1,149.19,149.18,5.41841525]
[1728319043718,6.7036,149.18,149.14,5.42045741]
[1728319044012,0.1,149.19,149.15,5.42045741]
[1728319044212,6.1679,149.19,149.16,5.42045741]
[1728319044509,6.1679,149.19,149.12,20.0]
[1728319044699,6.7045,149.16,149.13,5.42205225]
[1728319045009,6.7045,149.16,149.14,5.42205225]
[1728319045310,6.7045,149.16,149.15,5.42205225]
[1728319045700,6.7038,149.17,149.15,5.42205225]
[1728319046017,6.7033,149.18,149.16,5.42205225]
[1728319046187,6.7033,149.18,149.17,5.42546694]
[1728319046526,12.8709,149.19,149.17,5.42546694]
[1728319046689,12.8709,149.19,149.13,1.34080118]
[1728319046893,12.8709,149.19,149.14,5.42523599]
[1728319047205,12.8709,149.19,149.15,6.76602303]
[1728319047405,12.8709,149.19,149.12,12.09969261]
[1728319047406,6.7033,149.18,149.16,5.42523599]
[1728319047606,6.7033,149.18,149.17,5.42523599]
[1728319049399,23.776884,149.17,149.09,20.0]
[1728319049594,6.7049,149.15,149.1,5.43017798]
[1728319049916,6.7049,149.15,149.11,5.43017798]
[1728319050119,6.7049,149.15,149.12,5.43017798]
[1728319050416,6.7049,149.15,149.13,5.43017798]
[1728319050711,6.7049,149.15,149.14,5.43017798]
[1728319052789,6.7049,149.15,149.1,1.34111351]
[1728319052989,6.7043,149.16,149.1,13.44080612]
[1728319053295,6.7043,149.16,149.11,5.43170069]
[1728319053496,6.7047,149.15,149.11,5.43170069]
[1728319053815,6.7047,149.15,149.12,5.43170069]
[1728319053992,6.7047,149.15,149.13,5.43170069]
[1728319054196,6.7047,149.15,149.14,5.43170069]
[1728319056212,6.7047,149.15,149.14,5.43179341]
[1728319056718,6.7047,149.15,149.14,5.43134807]
[1728319056902,6.7042,149.16,149.14,5.43134807]
[1728319057226,6.7042,149.16,149.15,5.43134807]
[1728319058015,6.7033,149.18,149.15,5.43134807]
[1728319058228,12.8708,149.19,149.16,5.43134807]
[1728319058394,6.7033,149.18,149.17,5.43134807]
[1728319059094,12.8708,149.19,149.17,5.43134807]
[1728319059294,12.8708,149.19,149.14,1.34079015]
[1728319059295,12.8708,149.19,149.18,5.43134807]
[1728319059505,0.1,149.19,149.18,5.43134807]
[1728319063921,0.1,149.19,149.18,1.34040121]
[1728319064125,0.1,149.19,149.18,33.44009382]
[1728319067834,0.1,149.19,149.18,13.44009382]
[1728319068217,24.03189,149.24,149.18,13.44009382]
[1728319068218,23.63189,149.24,149.18,13.44009382]
[1728319068807,0.43049,149.24,149.2,12.09969261]
[1728319069005,0.43049,149.24,149.21,1.34015887]
[1728319070407,0.43049,149.24,149.21,13.43985148]
[1728319070809,0.43049,149.24,149.21,12.09969261]
[1728319071338,0.43049,149.24,149.19,12.09969261]
[1728319071521,0.43049,149.24,149.2,20.0]
[1728319072511,0.43049,149.24,149.21,13.43975959]
[1728319073812,0.43049,149.24,149.22,12.09969261]
[1728319074336,0.43049,149.24,149.2,18.16389261]
[1728319074528,0.43049,149.24,149.21,20.0]
[1728319075509,0.43049,149.24,149.22,13.43966416]
[1728319075710,0.43049,149.24,149.21,32.09969261]
[1728319075909,0.43049,149.24,149.23,5.40520086]
[1728319076138,0.43049,149.24,149.21,32.09969261]
[1728319076314,0.43049,149.24,149.22,1.33997112]
[1728319077506,0.43049,149.24,149.21,12.09969261]
[1728319078132,0.43049,149.24,149.22,1.33996396]
[1728319078507,0.43049,149.24,149.22,13.43962092]
[1728319078710,0.43049,149.24,149.22,12.09969261]
[1728319080550,0.43049,149.24,149.23,30.0]
[1728319082646,0.43049,149.24,149.23,31.33991283]
[1728319083514,0.43049,149.24,149.23,30.0]
[1728319083718,0.43049,149.24,149.23,31.33979251]
[1728319085741,0.43049,149.24,149.23,1.33979251]
[1728319086113,0.43049,149.24,149.22,12.09969261]
[1728319087442,0.43049,149.24,149.23,1.33979571]
[1728319088113,0.43049,149.24,149.21,12.09969261]
[1728319090041,0.43049,149.24,149.22,12.09969261]
[1728319090240,0.43049,149.24,149.23,12.09969261]
[1728319090820,0.43049,149.24,149.23,55.87657661]
[1728319091520,0.43049,149.24,149.23,85.87657661]
[1728319091912,0.43049,149.24,149.23,62.09969261]
[1728319092316,0.43049,149.24,149.23,63.43927064]
[1728319092538,0.43049,149.24,149.23,87.21615464]
[1728319092741,0.1,149.29,149.24,43.776884]
[1728319092958,0.1,149.29,149.28,12.09969261]
[1728319093492,0.1,149.29,149.28,13.43889601]
[1728319093949,0.1,149.29,149.28,50.13769601]
[1728319095836,0.1,149.29,149.28,70.13769601]
[1728319096266,7.02809,149.39,149.35,6.6953]
[1728319096465,13.72209,149.39,149.36,1.33885429]
[1728319096757,13.72209,149.39,149.36,1.33881983]
[1728319097144,6.6944,149.38,149.34,6.6959]
[1728319097345,13.72189,149.39,149.33,12.09969261]
[1728319097556,6.6947,149.37,149.33,6.6965]
[1728319098022,6.6947,149.37,149.34,1.3389766]
[1728319098752,23.76309,149.39,149.3,12.09969261]
[1728319098923,23.76309,149.39,149.32,30.0]
[1728319099123,23.76309,149.39,149.32,36.6968]
[1728319099124,6.6954,149.36,149.32,36.6968]
[1728319099340,6.6954,149.36,149.32,30.0]
[1728319099652,6.6957,149.35,149.31,6.6974]
[1728319099860,6.6962,149.34,149.29,12.09969261]
[1728319100029,6.6962,149.34,149.3,30.0]
[1728319100350,23.76309,149.39,149.3,30.0]
[1728319100351,6.6966,149.33,149.3,30.0]
[1728319101359,16.7375,149.37,149.28,26.6988]
[1728319101360,6.6972,149.32,149.28,26.6988]
[1728319101649,15.7561,149.35,149.29,31.33937854]
[1728319101956,6.6964,149.34,149.29,38.03747854]
[1728319102858,15.7561,149.35,149.32,6.697]
[1728319103155,15.7561,149.35,149.33,1.33913717]
[1728319105262,6.6953,149.36,149.33,1.33913717]
[1728319105449,23.65639,149.39,149.33,1.33913717]
[1728319105450,6.6949,149.37,149.33,38.03563717]
[1728319105774,6.6949,149.37,149.33,31.33913717]
[1728319105979,6.6961,149.34,149.33,30.0]
[1728319106350,6.6973,149.32,149.28,6.6985]
[1728319106571,6.2377,149.34,149.29,30.0]
[1728319106869,6.6979,149.3,149.29,30.0]
[1728319107071,6.6975,149.31,149.29,30.0]
[1728319107452,6.6979,149.3,149.29,30.0]
[1728319108478,23.776884,149.33,149.25,8.03971032]
[1728319108479,6.6983,149.29,149.25,8.03971032]
[1728319108680,6.6979,149.3,149.26,36.6993]
[1728319108872,22.9783,149.34,149.27,1.33958753]
[1728319109081,6.6977,149.31,149.27,6.6991]
[1728319109568,6.2377,149.34,149.28,1.33959158]
[1728319109763,6.6973,149.32,149.28,8.03819158]
[1728319109965,6.6973,149.32,149.28,1.33959158]
[1728319110860,6.2377,149.34,149.28,1.33959158]
[1728319110861,6.6978,149.31,149.28,1.33959158]
[1728319111179,6.6978,149.31,149.27,6.6991]
[1728319112692,6.6983,149.29,149.26,31.33950263]
[1728319112891,6.6983,149.29,149.26,30.0]
[1728319113075,6.6983,149.29,149.26,31.33973585]
[1728319113989,6.6991,149.28,149.24,6.7005]
[1728319114367,6.6985,149.29,149.25,8.03984448]
[1728319114576,6.698,149.3,149.26,6.6996]
[1728319115888,40.518684,149.33,149.24,12.09969261]
[1728319116073,40.518684,149.33,149.25,36.6998]
[1728319116074,6.6983,149.29,149.25,36.6998]
[1728319116274,40.518684,149.33,149.25,36.6998]
[1728319116275,6.698,149.3,149.26,6.6996]
[1728319116479,6.698,149.3,149.26,8.03933669]
[1728319118087,6.6975,149.31,149.27,6.6989]
[1728319118789,6.6971,149.32,149.28,8.03820573]
[1728319119177,6.2377,149.34,149.29,6.698]
[1728319119693,6.6971,149.32,149.28,6.6986]
[1728319119878,6.6971,149.32,149.29,1.33950588]
[1728319120080,6.6971,149.32,149.28,6.6986]
[1728319120699,6.6975,149.31,149.26,12.09969261]
[1728319120870,6.6975,149.31,149.27,6.6989]
[1728319121874,6.6975,149.31,149.28,1.3395084]
[1728319122086,6.6972,149.32,149.28,8.0382084]
[1728319122280,6.6972,149.32,149.28,6.6987]
[1728319122601,6.6972,149.32,149.29,1.33950842]
[1728319123090,6.6972,149.32,149.28,6.6987]
[1728319123489,6.6972,149.32,149.29,1.33950862]
[1728319123893,6.6972,149.32,149.29,30.0]
[1728319124402,6.2377,149.34,149.29,30.0]
[1728319124593,6.697,149.32,149.29,30.0]
[1728319124802,6.697,149.32,149.29,31.33950813]
[1728319125491,6.697,149.32,149.29,30.0]
[1728319125690,6.6979,149.3,149.29,30.0]
[1728319125896,6.6979,149.3,149.25,6.6999]
[1728319126277,22.9785,149.34,149.25,6.6999]
[1728319126587,16.7427,149.32,149.25,6.6999]
[1728319126788,6.6985,149.29,149.25,6.6999]
[1728319127281,6.6985,149.29,149.26,1.33973434]
[1728319127481,6.6985,149.29,149.25,6.6999]
[1728319127895,6.6988,149.28,149.24,6.7005]
[1728319128893,6.6988,149.28,149.25,1.33985378]
[1728319130089,6.6995,149.27,149.23,6.7009]
[1728319130289,23.776884,149.31,149.22,27.78449261]
[1728319130290,6.6989,149.28,149.24,8.04040531]
[1728319130781,6.6989,149.28,149.24,6.7005]
[1728319131020,23.776884,149.31,149.25,1.33990589]
[1728319131203,6.6985,149.29,149.25,6.7001]
[1728319132112,6.6988,149.28,149.24,6.7004]
[1728319132277,6.6985,149.29,149.25,8.04000386]
[1728319133200,6.698,149.3,149.26,6.6996]
[1728319133406,6.6975,149.31,149.27,8.03893359]
[1728319134197,6.6975,149.31,149.28,6.6987]
[1728319134707,6.6973,149.32,149.28,6.6987]
[1728319134898,6.2377,149.34,149.28,6.6987]
[1728319134899,6.6975,149.31,149.28,6.6987]
[1728319136186,6.697,149.32,149.29,8.0379203]
[1728319136392,6.697,149.32,149.26,12.09969261]
[1728319136599,6.697,149.32,149.28,6.6985]
[1728319136793,33.0929,149.35,149.29,1.33948298]
[1728319136794,16.3531,149.35,149.29,1.33948298]
[1728319137000,6.6968,149.33,149.29,6.698]
[1728319137301,6.6979,149.3,149.26,6.6995]
[1728319137493,6.6986,149.29,149.25,6.7]
[1728319137690,16.7406,149.34,149.24,18.41459261]
[1728319137909,16.7406,149.34,149.25,30.0]
[1728319138099,16.7406,149.34,149.24,21.89270929]
[1728319139012,6.6979,149.3,149.26,6.6995]
[1728319139709,6.6979,149.3,149.27,1.33973742]
[1728319140220,6.6962,149.34,149.28,12.09969261]
[1728319140393,6.6957,149.35,149.31,6.6974]
[1728319141787,6.6957,149.35,149.29,1.33931518]
[1728319141788,6.4714,149.38,149.32,1.33931546]
[1728319141994,6.4714,149.38,149.29,15.57780929]
[1728319142592,6.6962,149.34,149.3,1.33931865]
[1728319143112,23.776884,149.36,149.28,3.47811668]
[1728319143321,16.7396,149.35,149.28,3.47811668]
[1728319143490,6.698,149.3,149.27,15.0235]
[1728319144300,6.6988,149.28,149.26,3.47811668]
[1728319144516,6.6988,149.28,149.24,3.47811668]
[1728319145307,6.6988,149.28,149.24,11.51829901]
[1728319145813,6.6988,149.28,149.24,10.17841668]
[1728319146036,6.6988,149.28,149.24,11.51830332]
[1728319146600,6.6992,149.27,149.24,3.47811668]
[1728319147390,6.6992,149.27,149.23,25.79961668]
[1728319147594,6.6992,149.27,149.23,19.09891668]
[1728319147814,6.6992,149.27,149.24,3.47811668]
[1728319148415,6.6999,149.26,149.23,3.47811668]
[1728319148919,6.7006,149.24,149.23,3.47811668]
[1728319149124,6.7006,149.24,149.21,3.47811668]
[1728319150218,6.7006,149.24,149.2,10.18041668]
[1728319150421,6.7011,149.23,149.2,3.47811668]
[1728319150919,6.7006,149.24,149.2,10.18041668]
[1728319151313,6.7006,149.24,149.21,3.47811668]
[1728319151821,6.7006,149.24,149.2,10.18041668]
[1728319152130,6.7006,149.24,149.2,3.47811668]
[1728319152419,23.776884,149.26,149.18,3.47811668]
[1728319152622,23.776884,149.26,149.17,3.47811668]
[1728319152922,6.7016,149.22,149.17,6.7034]
[1728319153221,6.702,149.21,149.17,6.7034]
[1728319154199,16.7507,149.25,149.18,8.04364302]
[1728319154508,23.776884,149.27,149.19,6.7028]
[1728319154709,6.7011,149.23,149.19,6.7028]
[1728319165529,16.7533,149.23,149.14,19.51871668]
[1728319165710,6.702,149.21,149.17,6.7036]
[1728319169534,23.776884,149.23,149.14,16.0406]
[1728319169831,6.7025,149.2,149.16,6.7041]
[1728319171617,6.7025,149.2,149.14,16.0406]
[1728319171815,6.7037,149.17,149.14,22.7453]
[1728319172141,6.7037,149.17,149.14,6.7047]
[1728319172624,6.7037,149.17,149.13,6.7054]
[1728319172819,6.7043,149.16,149.09,3.47811668]
[1728319173023,6.7043,149.16,149.11,6.7061]
[1728319173331,6.7043,149.16,149.06,16.6478]
[1728319173332,23.776884,149.19,149.09,18.89414566]
[1728319173517,6.7034,149.18,149.14,6.705]
[1728319174035,38.4992,149.23,149.15,1.34093778]
[1728319174223,6.702,149.21,149.17,6.7036]
[1728319174430,6.702,149.21,149.11,18.89414566]
[1728319174627,6.702,149.21,149.16,6.704]
[1728319174940,6.7025,149.2,149.16,6.704]
[1728319175623,6.702,149.21,149.16,6.704]
[1728319175931,30.478684,149.22,149.17,6.7036]
[1728319176133,23.776884,149.22,149.17,6.7036]
[1728319177014,6.702,149.21,149.17,6.7036]
[1728319185624,23.73301694,149.26,149.18,1.34062015]
[1728319185824,23.73301694,149.26,149.17,12.0936328]
[1728319186024,23.73301694,149.26,149.18,6.703]
[1728319186025,6.7017,149.22,149.18,6.703]
[1728319186228,6.7017,149.22,149.18,8.04346924]
[1728319186434,6.7017,149.22,149.18,6.703]
[1728319187442,6.7017,149.22,149.18,8.04346083]
[1728319187630,6.7017,149.22,149.18,6.703]
[1728319187834,6.7019,149.21,149.17,6.7036]
[1728319188617,6.7019,149.21,149.18,1.34054019]
[1728319189456,23.776884,149.25,149.18,1.34054019]
[1728319189625,6.7018,149.22,149.18,6.7032]
[1728319193745,6.7019,149.21,149.18,6.7032]
[1728319194133,6.7016,149.22,149.18,6.7032]
[1728319194555,6.702,149.21,149.18,6.7032]
[1728319194941,6.7025,149.2,149.15,12.0936328]
[1728319195146,23.776884,149.25,149.14,22.59]
[1728319195344,6.7034,149.18,149.14,29.295]
[1728319195538,23.776884,149.21,149.14,22.59]
[1728319195759,6.7034,149.18,149.14,29.295]
[1728319197457,6.7034,149.18,149.14,30.63583556]
[1728319199259,6.7034,149.18,149.14,32.77311668]
[1728319200054,6.7037,149.17,149.14,32.77311668]
[1728319200460,6.7037,149.17,149.14,20.01451668]
[1728319200757,6.7037,149.17,149.14,16.5364]
[1728319200936,23.776884,149.21,149.14,20.01451668]
[1728319201143,16.7536,149.23,149.15,1.34092528]
[1728319201342,16.7536,149.23,149.15,4.81904196]
[1728319201550,16.7536,149.23,149.16,3.47811668]
[1728319201742,6.7021,149.21,149.17,8.04400222]
[1728319202157,6.7016,149.22,149.18,6.7029]
[1728319202368,6.7025,149.2,149.16,10.18221668]
[1728319202941,6.7028,149.19,149.16,3.47811668]
[1728319203756,6.7033,149.18,149.16,3.47811668]
[1728319204153,6.7033,149.18,149.17,3.47811668]
[1728319204460,6.7027,149.2,149.17,3.47811668]
[1728319205741,6.97904143,149.25,149.17,3.47811668]
[1728319205742,23.73014143,149.25,149.17,3.47811668]
[1728319205941,6.702,149.21,149.17,10.18171668]
[1728319206362,23.73014143,149.25,149.17,3.47811668]
[1728319206363,6.7033,149.18,149.17,3.47811668]
[1728319206565,23.776884,149.24,149.16,3.47811668]
[1728319206864,6.7042,149.16,149.15,3.47811668]
[1728319207250,16.7573,149.19,149.14,3.47811668]
[1728319207452,6.7046,149.15,149.14,3.47811668]
[1728319208247,6.7043,149.16,149.14,3.47811668]
[1728319208963,15.9646,149.21,149.14,3.47811668]
[1728319209171,6.7031,149.19,149.15,6.7043]
[1728319209463,6.7031,149.19,149.15,10.18241668]
[1728319210461,40.04274143,149.25,149.16,16.9125421]
[1728319210673,6.7015,149.22,149.18,6.7031]
[1728319210856,40.04274143,149.25,149.16,3.47811668]
[1728319211050,6.7024,149.2,149.16,11.52261049]
[1728319211251,16.7528,149.23,149.16,3.47811668]
[1728319211454,23.29204143,149.25,149.16,3.47811668]
[1728319211671,6.7037,149.17,149.15,3.47811668]
[1728319211964,6.7037,149.17,149.14,3.47811668]
[1728319212341,6.7039,149.17,149.14,3.47811668]
[1728319212851,23.776884,149.2,149.15,3.47811668]
[1728319213053,6.7025,149.2,149.16,10.18221668]
[1728319213642,6.7029,149.19,149.16,3.47811668]
[1728319213848,6.7025,149.2,149.16,10.18221668]
[1728319214560,23.776884,149.22,149.16,3.47811668]
[1728319214752,6.7034,149.18,149.16,3.47811668]
[1728319215257,6.7029,149.19,149.16,3.47811668]
[1728319219158,6.7023,149.21,149.17,6.7037]
[1728319219482,6.7014,149.23,149.19,6.7028]
[1728319219782,6.7024,149.2,149.16,18.50461668]
[1728319219953,6.7024,149.2,149.16,19.84528871]
[1728319220156,40.0377005,149.25,149.17,3.47811668]
[1728319220480,6.7015,149.22,149.18,6.7029]
[1728319220771,6.7015,149.22,149.18,8.04346298]
[1728319221578,6.7015,149.22,149.18,6.7029]
[1728319222076,40.0377005,149.25,149.18,3.47811668]
[1728319222286,6.7027,149.2,149.18,3.47811668]
[1728319223382,6.7028,149.19,149.18,3.47811668]
[1728319223875,30.479684,149.19,149.18,3.47811668]
[1728319224080,6.7039,149.17,149.13,13.2342]
[1728319224259,6.7039,149.17,149.13,6.7052]
[1728319226882,6.7039,149.17,149.15,3.51037931]
[1728319228858,6.702,149.21,149.17,6.7036]
[1728319229160,6.7031,149.19,149.15,10.21487931]
[1728319229975,6.7025,149.2,149.16,6.7041]
[1728319230162,6.7028,149.19,149.15,10.21487931]
[1728319230363,6.7028,149.19,149.15,11.55569045]
[1728319230585,6.7028,149.19,149.15,10.21487931]
[1728319231282,6.7028,149.19,149.14,1.34081262]